fUSD/lending_fUSD_20250208
["ID","MTS","AMOUNT","RATE_DAILY","PERIOD"]
[352328691,1739044232324,-500.0,9.998e-05,2]
[352328692,1739044232334,-550.93276605,9.998e-05,2]
[352328693,1739044232343,-500.0,9.998e-05,2]
[352328694,1739044232354,-500.0,9.998e-05,2]
[352328695,1739044232363,-500.0,9.998e-05,2]
[352328696,1739044232373,-669.22,9.998e-05,2]
[352328697,1739044232382,-500.0,9.998e-05,2]
[352328698,1739044232391,-500.0,9.998e-05,2]
[352328699,1739044232401,-500.0,9.998e-05,2]
[352328700,1739044232412,-500.0,9.998e-05,2]
[352328701,1739044232422,-500.0,9.998e-05,2]
[352328702,1739044232431,-500.0,9.998e-05,2]
[352328703,1739044232441,-546.45,9.998e-05,2]
[352328704,1739044232452,-500.0,9.998e-05,2]
[352328705,1739044232461,-500.0,9.998e-05,2]
[352328706,1739044232470,-1103.02,9.998e-05,2]
[352328707,1739044232479,-500.0,9.998e-05,2]
[352328708,1739044232489,-500.0,9.998e-05,2]
[352328709,1739044232499,-500.0,9.998e-05,2]
[352328710,1739044232508,-500.0,9.998e-05,2]
[352328711,1739044232518,-500.0,9.998e-05,2]
[352328712,1739044232527,-500.0,9.998e-05,2]
[352328713,1739044232536,-500.0,9.998e-05,2]
[352328714,1739044232545,-500.0,9.998e-05,2]
[352328715,1739044232555,-500.0,9.998e-05,2]
[352328716,1739044232564,-901.77,9.998e-05,2]
[352328717,1739044232574,-1173.160634,9.998e-05,2]
[352328718,1739044232583,-222.47773545,9.998e-05,2]
[352328719,1739044232593,-500.0,9.998e-05,2]
[352328720,1739044232603,-500.0,9.998e-05,2]
[352328721,1739044232612,-500.0,9.998e-05,2]
[352328722,1739044232621,-500.0,9.998e-05,2]
[352328723,1739044232630,-161.399216,9.998e-05,2]
[352328724,1739044232639,-33.01411988,9.998e-05,2]
[352328725,1739044232655,-466.98588012,9.998e-05,2]
[352328726,1739044232664,-500.0,9.998e-05,2]
[352328727,1739044232673,-155.69757,9.998e-05,2]
[352328728,1739044232683,-500.0,9.998e-05,2]
[352328729,1739044232693,-533.81932162,9.998e-05,2]
[352328730,1739044232702,-583.68,9.998e-05,2]
[352328731,1739044232711,-500.0,9.998e-05,2]
[352328732,1739044232721,-430.72981043,9.998e-05,2]
[352328733,1739044232732,-500.0,9.998e-05,2]
[352328734,1739044232742,-500.0,9.998e-05,2]
[352328735,1739044232751,-371.29792101,9.998e-05,2]
[352328736,1739044232761,-500.0,9.998e-05,2]
[352328737,1739044232770,-942.5,9.998e-05,2]
[352328738,1739044232780,-500.0,9.998e-05,2]
[352328739,1739044232789,-500.0,9.998e-05,2]
[352328740,1739044232798,-500.0,9.998e-05,2]
[352328741,1739044232813,-1064.071599,9.998e-05,2]
[352328742,1739044232822,-501.21391441,9.998e-05,2]
[352328743,1739044232831,-897.19,9.998e-05,2]
[352328744,1739044232840,-532.45,9.998e-05,2]
[352328745,1739044232849,-156.508673,9.998e-05,2]
[352328746,1739044232858,-500.0,9.998e-05,2]
[352328747,1739044232868,-500.0,9.998e-05,2]
[352328748,1739044232877,-763.61,9.998e-05,2]
[352328749,1739044232886,-500.0,9.998e-05,2]
[352328750,1739044232895,-500.0,9.998e-05,2]
[352328751,1739044232904,-500.0,9.998e-05,2]
[352328752,1739044232914,-500.0,9.998e-05,2]
[352328753,1739044232923,-400.0,9.998e-05,2]
[352328754,1739044232932,-500.0,9.998e-05,2]
[352328755,1739044232942,-447.51075857,9.998e-05,2]
[352328756,1739044232951,-508.88973151,9.998e-05,2]
[352328757,1739044232960,-500.0,9.998e-05,2]
[352328758,1739044232969,-500.0,9.998e-05,2]
[352328759,1739044232978,-977.4,9.998e-05,2]
[352328760,1739044232987,-500.0,9.998e-05,2]
[352328761,1739044232996,-840.2,9.998e-05,2]
[352328762,1739044233006,-500.0,9.998e-05,2]
[352328763,1739044233014,-500.0,9.998e-05,2]
[352328764,1739044233024,-500.0,9.998e-05,2]
[352328765,1739044233033,-500.0,9.998e-05,2]
[352328766,1739044233042,-500.0,9.998e-05,2]
[352328767,1739044233051,-674.41,9.998e-05,2]
[352328768,1739044233062,-500.0,9.998e-05,2]
[352328769,1739044233071,-513.37071642,9.998e-05,2]
[352328770,1739044233080,-500.0,9.998e-05,2]
[352328771,1739044233089,-500.0,9.998e-05,2]
[352328772,1739044233098,-168.46410391,9.998e-05,2]
[352328773,1739044233113,-331.53589609,9.998e-05,2]
[352328774,1739044233122,-944.07,9.998e-05,2]
[352328775,1739044233132,-500.0,9.998e-05,2]
[352328776,1739044233141,-500.0,9.998e-05,2]
[352328777,1739044233151,-500.0,9.998e-05,2]
[352328778,1739044233161,-500.0,9.998e-05,2]
[352328779,1739044233170,-500.0,9.998e-05,2]
[352328780,1739044233180,-500.0,9.998e-05,2]
[352328781,1739044233189,-500.0,9.998e-05,2]
[352328782,1739044233199,-500.0,9.998e-05,2]
[352328783,1739044233208,-500.0,9.998e-05,2]
[352328784,1739044233217,-324.39410381,9.998e-05,2]
[352328785,1739044233228,-175.60589619,9.998e-05,2]
[352328786,1739044233238,-706.28,9.998e-05,2]
[352328787,1739044233247,-500.0,9.998e-05,2]
[352328788,1739044233255,-783.75,9.998e-05,2]
[352328789,1739044233264,-500.0,9.998e-05,2]
[352328790,1739044233274,-500.0,9.998e-05,2]
[352328791,1739044233283,-500.0,9.998e-05,2]
[352328792,1739044233293,-500.0,9.998e-05,2]
[352328793,1739044233301,-500.0,9.998e-05,2]
[352328794,1739044233310,-500.0,9.998e-05,2]
[352328795,1739044233319,-500.0,9.998e-05,2]
[352328796,1739044233328,-214.36410381,9.998e-05,2]
[352328797,1739044233339,-285.63589619,9.998e-05,2]
[352328798,1739044233348,-500.0,9.998e-05,2]
[352328799,1739044233358,-500.0,9.998e-05,2]
[352328800,1739044233367,-264.36410381,9.998e-05,2]
[352328801,1739044233378,-235.63589619,9.998e-05,2]
[352328802,1739044233387,-798.27,9.998e-05,2]
[352328803,1739044233397,-500.0,9.998e-05,2]
[352328804,1739044233407,-500.0,9.998e-05,2]
[352328805,1739044233416,-500.0,9.998e-05,2]
[352328806,1739044233425,-90.99004955,9.998e-05,2]
[352328807,1739044233450,-409.00995045,9.998e-05,2]
[352328808,1739044233459,-500.0,9.998e-05,2]
[352328809,1739044233469,-500.0,9.998e-05,2]
[352328810,1739044233478,-500.0,9.998e-05,2]
[352328811,1739044233487,-500.0,9.998e-05,2]
[352328812,1739044233497,-500.0,9.998e-05,2]
[352328813,1739044233743,-500.0,9.998e-05,2]
[352328814,1739044233753,-500.0,9.998e-05,2]
[352328815,1739044233763,-500.0,9.998e-05,2]
[352328816,1739044233772,-500.0,9.998e-05,2]
[352328817,1739044233782,-500.0,9.998e-05,2]
[352328818,1739044233791,-500.0,9.998e-05,2]
[352328819,1739044233801,-500.0,9.998e-05,2]
[352328820,1739044233812,-500.0,9.998e-05,2]
[352328821,1739044233822,-139.8900086,9.998e-05,2]
[352328822,1739044233833,-78.79834905,9.998e-05,2]
[352328823,1739044233844,-500.0,9.998e-05,2]
[352328824,1739044233853,-34.97920815,9.998e-05,2]
[352328825,1739044233872,-269.87289921,9.998e-05,2]
[352328826,1739044233884,-195.14789264,9.998e-05,2]
[352328827,1739044233894,-500.0,9.998e-05,2]
[352328828,1739044233903,-232.46724736,9.998e-05,2]
[352328829,1739044233915,-267.53275264,9.998e-05,2]
[352328830,1739044233925,-205.80597571,9.998e-05,2]
[352328831,1739044233943,-610.03402429,9.998e-05,2]
[352328832,1739044233952,-333.76338921,9.998e-05,2]
[352328837,1739044237368,-722.24,9.997e-05,2]
[352328838,1739044237378,-500.0,9.997e-05,2]
[352328839,1739044237387,-500.0,9.997e-05,2]
[352328840,1739044237397,-500.0,9.997e-05,2]
[352328841,1739044237407,-500.0,9.997e-05,2]
[352328842,1739044237419,-500.0,9.997e-05,2]
[352328843,1739044237429,-500.0,9.997e-05,2]
[352328844,1739044237438,-500.0,9.997e-05,2]
[352328845,1739044237447,-500.0,9.997e-05,2]
[352328846,1739044237456,-500.0,9.997e-05,2]
[352328847,1739044237466,-500.0,9.997e-05,2]
[352328848,1739044237475,-500.0,9.997e-05,2]
[352328849,1739044237485,-471.45741099,9.997e-05,2]
[352328850,1739044237494,-500.0,9.997e-05,2]
[352328851,1739044237503,-500.0,9.997e-05,2]
[352328852,1739044237512,-500.0,9.997e-05,2]
[352328853,1739044237521,-500.0,9.997e-05,2]
[352328854,1739044237531,-500.0,9.997e-05,2]
[352328855,1739044237541,-500.0,9.997e-05,2]
[352328856,1739044237550,-500.0,9.997e-05,2]
[352328857,1739044237560,-500.0,9.997e-05,2]
[352328858,1739044237570,-500.0,9.997e-05,2]
[352328859,1739044237579,-213.38907595,9.997e-05,2]
[352328860,1739044237589,-500.0,9.997e-05,2]
[352328861,1739044237598,-500.0,9.997e-05,2]
[352328862,1739044237608,-500.0,9.997e-05,2]
[352328863,1739044237617,-500.0,9.997e-05,2]
[352328864,1739044237626,-500.0,9.997e-05,2]
[352328865,1739044237635,-500.0,9.997e-05,2]
[352328866,1739044237645,-118.50735493,9.998e-05,2]
[352328867,1739044237654,-500.84114335,9.998e-05,2]
[352328868,1739044237664,-500.0,9.998e-05,2]
[352328869,1739044237673,-500.0,9.998e-05,2]
[352328870,1739044237684,-808.49,9.998e-05,2]
[352328872,1739044237695,-500.0,9.998e-05,2]
[352328874,1739044237704,-515.61156187,9.998e-05,2]
[352328876,1739044237713,-500.0,9.998e-05,2]
[352328878,1739044237723,-500.0,9.998e-05,2]
[352328880,1739044237735,-500.0,9.998e-05,2]
[352328882,1739044237744,-500.0,9.998e-05,2]
[352328884,1739044237753,-500.0,9.998e-05,2]
[352328886,1739044237763,-500.0,9.998e-05,2]
[352328888,1739044237774,-502.45588604,9.998e-05,2]
[352328890,1739044237783,-500.0,9.998e-05,2]
[352328892,1739044237793,-500.0,9.998e-05,2]
[352328894,1739044237806,-500.0,9.998e-05,2]
[352328896,1739044237818,-500.0,9.998e-05,2]
[352328898,1739044237828,-503.42391031,9.998e-05,2]
[352328900,1739044237837,-1183.41,9.998e-05,2]
[352328902,1739044237846,-837.79,9.998e-05,2]
[352328905,1739044237855,-510.03157747,9.998e-05,2]
[352328907,1739044237864,-500.0,9.998e-05,2]
[352328909,1739044237873,-500.0,9.998e-05,2]
[352328911,1739044237883,-500.0,9.998e-05,2]
[352328913,1739044237892,-500.0,9.998e-05,2]
[352328915,1739044237903,-500.0,9.998e-05,2]
[352328917,1739044237912,-199.47592605,9.998e-05,2]
[352328919,1739044237921,-676.71,9.998e-05,2]
[352328921,1739044237930,-500.0,9.998e-05,2]
[352328923,1739044237939,-500.0,9.998e-05,2]
[352328925,1739044237948,-500.0,9.998e-05,2]
[352328927,1739044237958,-605.14,9.998e-05,2]
[352328929,1739044237967,-152.49155,9.998e-05,2]
[352328931,1739044237976,-500.0,9.998e-05,2]
[352328933,1739044237986,-500.0,9.998e-05,2]
[352328935,1739044237995,-1618.91,9.998e-05,2]
[352328937,1739044238005,-500.0,9.998e-05,2]
[352328939,1739044238013,-500.0,9.998e-05,2]
[352328941,1739044238022,-500.0,9.998e-05,2]
[352328943,1739044238032,-500.0,9.998e-05,2]
[352328945,1739044238042,-500.0,9.998e-05,2]
[352328947,1739044238051,-1150.74,9.998e-05,2]
[352328948,1739044238060,-500.0,9.998e-05,2]
[352328950,1739044238069,-500.0,9.998e-05,2]
[352328952,1739044238079,-151.483252,9.998e-05,2]
[352328954,1739044238088,-500.0,9.998e-05,2]
[352328957,1739044238098,-500.0,9.998e-05,2]
[352328959,1739044238107,-941.16,9.998e-05,2]
[352328960,1739044238116,-415.4804824,9.998e-05,2]
[352328962,1739044238125,-669.83,9.998e-05,2]
[352328964,1739044238134,-500.0,9.998e-05,2]
[352328966,1739044238142,-549.99,9.998e-05,2]
[352328968,1739044238151,-500.0,9.998e-05,2]
[352328970,1739044238161,-500.0,9.998e-05,2]
[352328972,1739044238170,-1361.33,9.998e-05,2]
[352328974,1739044238179,-500.0,9.998e-05,2]
[352328976,1739044238188,-500.0,9.998e-05,2]
[352328978,1739044238198,-500.0,9.998e-05,2]
[352328980,1739044238208,-500.0,9.998e-05,2]
[352328982,1739044238217,-500.0,9.998e-05,2]
[352328984,1739044238226,-561.18,9.998e-05,2]
[352328986,1739044238235,-1366.38,9.998e-05,2]
[352328988,1739044238245,-500.0,9.998e-05,2]
[352328990,1739044238254,-387.58597967,9.998e-05,2]
[352328992,1739044238264,-1015.97,9.998e-05,2]
[352328994,1739044238273,-500.0,9.998e-05,2]
[352328996,1739044238283,-500.0,9.998e-05,2]
[352328997,1739044238292,-500.0,9.998e-05,2]
[352328999,1739044238302,-500.0,9.998e-05,2]
[352329001,1739044238310,-500.0,9.998e-05,2]
[352329003,1739044238320,-500.0,9.998e-05,2]
[352329005,1739044238329,-887.2,9.998e-05,2]
[352329007,1739044238338,-500.0,9.998e-05,2]
[352329009,1739044238347,-1834.05,9.998e-05,2]
[352329011,1739044238357,-500.0,9.998e-05,2]
[352329013,1739044238366,-849.57,9.998e-05,2]
[352329015,1739044238374,-500.0,9.998e-05,2]
[352329017,1739044238383,-500.0,9.998e-05,2]
[352329019,1739044238392,-500.0,9.998e-05,2]
[352329021,1739044238401,-500.0,9.998e-05,2]
[352329023,1739044238410,-500.0,9.998e-05,2]
[352329025,1739044238419,-533.09,9.998e-05,2]
[352329027,1739044238428,-500.0,9.998e-05,2]
[352329029,1739044238436,-500.0,9.998e-05,2]
[352329030,1739044238445,-500.0,9.998e-05,2]
[352329032,1739044238454,-500.0,9.998e-05,2]
[352329034,1739044238463,-797.41,9.998e-05,2]
[352329036,1739044238472,-739.56,9.998e-05,2]
[352329038,1739044238481,-500.0,9.998e-05,2]
[352329040,1739044238491,-500.0,9.998e-05,2]
[352329042,1739044238500,-500.0,9.998e-05,2]
[352329044,1739044238509,-979.64,9.998e-05,2]
[352329046,1739044238518,-500.0,9.998e-05,2]
[352329048,1739044238528,-500.0,9.998e-05,2]
[352329050,1739044238537,-962.16,9.998e-05,2]
[352329051,1739044238546,-500.0,9.998e-05,2]
[352329052,1739044238556,-887.97,9.998e-05,2]
[352329053,1739044238565,-1057.42,9.998e-05,2]
[352329054,1739044238575,-500.0,9.998e-05,2]
[352329055,1739044238584,-500.0,9.998e-05,2]
[352329056,1739044238595,-500.0,9.998e-05,2]
[352329057,1739044238605,-500.0,9.998e-05,2]
[352329058,1739044238614,-500.0,9.998e-05,2]
[352329059,1739044238624,-500.0,9.998e-05,2]
[352329060,1739044238634,-905.82,9.998e-05,2]
[352329061,1739044238643,-2314.12,9.998e-05,2]
[352329062,1739044238652,-151.48325,9.998e-05,2]
[352329063,1739044238662,-500.0,9.998e-05,2]
[352329064,1739044238671,-1142.98,9.998e-05,2]
[352329065,1739044238680,-500.0,9.998e-05,2]
[352329066,1739044238689,-500.0,9.998e-05,2]
[352329067,1739044238698,-500.0,9.998e-05,2]
[352329068,1739044238708,-500.0,9.998e-05,2]
[352329069,1739044238717,-500.0,9.998e-05,2]
[352329070,1739044238731,-500.0,9.998e-05,2]
[352329071,1739044238740,-500.0,9.998e-05,2]
[352329072,1739044238750,-829.5,9.998e-05,2]
[352329074,1739044238759,-1329.11,9.998e-05,2]
[352329076,1739044238769,-1595.23,9.998e-05,2]
[352329078,1739044238779,-500.0,9.998e-05,2]
[352329079,1739044238788,-795.37,9.998e-05,2]
[352329081,1739044238797,-500.0,9.998e-05,2]
[352329083,1739044238809,-1702.34,9.998e-05,2]
[352329085,1739044238822,-500.0,9.998e-05,2]
[352329088,1739044238832,-826.46,9.998e-05,2]
[352329089,1739044238841,-500.0,9.998e-05,2]
[352329091,1739044238850,-500.0,9.998e-05,2]
[352329093,1739044238859,-500.0,9.998e-05,2]
[352329095,1739044238868,-1972.13,9.998e-05,2]
[352329097,1739044238877,-1406.55,9.998e-05,2]
[352329099,1739044238886,-500.0,9.998e-05,2]
[352329101,1739044238896,-500.0,9.998e-05,2]
[352329103,1739044238905,-500.0,9.998e-05,2]
[352329106,1739044238915,-1923.12,9.998e-05,2]
[352329108,1739044238925,-500.0,9.998e-05,2]
[352329110,1739044238934,-500.0,9.998e-05,2]
[352329112,1739044238943,-567.99,9.998e-05,2]
[352329113,1739044238951,-500.0,9.998e-05,2]
[352329115,1739044238961,-500.0,9.998e-05,2]
[352329117,1739044238971,-500.0,9.998e-05,2]
[352329119,1739044238980,-500.0,9.998e-05,2]
[352329121,1739044238990,-500.0,9.998e-05,2]
[352329123,1739044239000,-1484.2,9.998e-05,2]
[352329125,1739044239010,-500.0,9.998e-05,2]
[352329128,1739044239021,-500.0,9.998e-05,2]
[352329130,1739044239033,-1965.75,9.998e-05,2]
[352329132,1739044239042,-1114.76,9.998e-05,2]
[352329134,1739044239052,-646.74,9.998e-05,2]
[352329136,1739044239061,-500.0,9.998e-05,2]
[352329138,1739044239070,-4307.64,9.998e-05,2]
[352329140,1739044239078,-500.0,9.998e-05,2]
[352329141,1739044239087,-503.50560142,9.998e-05,2]
[352329143,1739044239096,-1142.04,9.998e-05,2]
[352329145,1739044239105,-500.0,9.998e-05,2]
[352329147,1739044239114,-500.0,9.998e-05,2]
[352329149,1739044239124,-500.0,9.998e-05,2]
[352329151,1739044239133,-500.0,9.998e-05,2]
[352329154,1739044239142,-1348.55,9.998e-05,2]
[352329157,1739044239151,-640.77,9.998e-05,2]
[352329160,1739044239160,-500.0,9.998e-05,2]
[352329163,1739044239170,-704.02,9.998e-05,2]
[352329166,1739044239179,-500.0,9.998e-05,2]
[352329169,1739044239188,-152.97498,9.998e-05,2]
[352329172,1739044239198,-500.0,9.998e-05,2]
[352329174,1739044239207,-1125.13,9.998e-05,2]
[352329177,1739044239217,-500.0,9.998e-05,2]
[352329181,1739044239226,-460.08618774,9.998e-05,2]
[352329184,1739044239235,-1470.38,9.998e-05,2]
[352329186,1739044239244,-500.0,9.998e-05,2]
[352329188,1739044239253,-500.0,9.998e-05,2]
[352329190,1739044239263,-500.0,9.998e-05,2]
[352329192,1739044239272,-1284.44,9.998e-05,2]
[352329194,1739044239283,-500.0,9.998e-05,2]
[352329196,1739044239292,-503.89774366,9.998e-05,2]
[352329199,1739044239301,-1869.63,9.998e-05,2]
[352329201,1739044239311,-500.0,9.998e-05,2]
[352329203,1739044239320,-500.0,9.998e-05,2]
[352329205,1739044239330,-1535.34,9.998e-05,2]
[352329207,1739044239339,-500.0,9.998e-05,2]
[352329209,1739044239348,-500.0,9.998e-05,2]
[352329232,1739044239357,-500.0,9.998e-05,2]
[352329236,1739044239596,-500.0,9.998e-05,2]
[352329238,1739044239606,-500.0,9.998e-05,2]
[352329240,1739044239619,-408.57602487,9.998e-05,2]
[352329242,1739044239629,-1897.47,9.998e-05,2]
[352329244,1739044239638,-500.0,9.998e-05,2]
[352329246,1739044239647,-1490.63,9.998e-05,2]
[352329248,1739044239656,-500.0,9.998e-05,2]
[352329250,1739044239665,-500.0,9.998e-05,2]
[352329252,1739044239674,-500.0,9.998e-05,2]
[352329254,1739044239683,-500.0,9.998e-05,2]
[352329256,1739044239693,-785.41,9.998e-05,2]
[352329258,1739044239702,-500.0,9.998e-05,2]
[352329260,1739044239711,-2078.2,9.998e-05,2]
[352329262,1739044239721,-502.10317483,9.998e-05,2]
[352329264,1739044239735,-2749.9,9.998e-05,2]
[352329266,1739044239744,-500.0,9.998e-05,2]
[352329268,1739044239753,-500.0,9.998e-05,2]
[352329269,1739044239763,-151.79094384,9.998e-05,2]
[352329271,1739044239772,-933.1,9.998e-05,2]
[352329273,1739044239782,-1000.73,9.998e-05,2]
[352329275,1739044239791,-500.0,9.998e-05,2]
[352329277,1739044239802,-500.0,9.998e-05,2]
[352329279,1739044239812,-500.0,9.998e-05,2]
[352329281,1739044239821,-592.37,9.998e-05,2]
[352329283,1739044239830,-1940.13,9.998e-05,2]
[352329285,1739044239839,-500.0,9.998e-05,2]
[352329287,1739044239848,-500.0,9.998e-05,2]
[352329289,1739044239857,-940.46,9.998e-05,2]
[352329291,1739044239867,-500.0,9.998e-05,2]
[352329293,1739044239876,-500.0,9.998e-05,2]
[352329295,1739044239885,-500.0,9.998e-05,2]
[352329297,1739044239895,-500.0,9.998e-05,2]
[352329299,1739044239904,-500.0,9.998e-05,2]
[352329301,1739044239913,-500.0,9.998e-05,2]
[352329303,1739044239922,-500.0,9.998e-05,2]
[352329305,1739044239931,-500.0,9.998e-05,2]
[352329307,1739044239948,-998.39,9.998e-05,2]
[352329309,1739044239957,-1136.94,9.998e-05,2]
[352329311,1739044239966,-1883.61,9.998e-05,2]
[352329313,1739044239977,-2982.03,9.998e-05,2]
[352329315,1739044239985,-500.0,9.998e-05,2]
[352329317,1739044239994,-500.0,9.998e-05,2]
[352329319,1739044240003,-979.73,9.998e-05,2]
[352329321,1739044240012,-500.0,9.998e-05,2]
[352329323,1739044240022,-500.0,9.998e-05,2]
[352329325,1739044240032,-500.0,9.998e-05,2]
[352329327,1739044240041,-500.0,9.998e-05,2]
[352329329,1739044240050,-1184.77,9.998e-05,2]
[352329331,1739044240059,-500.0,9.998e-05,2]
[352329333,1739044240068,-500.0,9.998e-05,2]
[352329335,1739044240078,-500.0,9.998e-05,2]
[352329337,1739044240087,-500.0,9.998e-05,2]
[352329339,1739044240096,-500.0,9.998e-05,2]
[352329341,1739044240107,-500.0,9.998e-05,2]
[352329343,1739044240116,-1359.57,9.998e-05,2]
[352329345,1739044240126,-1301.55,9.998e-05,2]
[352329347,1739044240135,-500.0,9.998e-05,2]
[352329349,1739044240143,-500.0,9.998e-05,2]
[352329351,1739044240152,-500.0,9.998e-05,2]
[352329353,1739044240162,-621.86,9.998e-05,2]
[352329354,1739044240171,-500.0,9.998e-05,2]
[352329356,1739044240180,-500.0,9.998e-05,2]
[352329358,1739044240189,-500.0,9.998e-05,2]
[352329360,1739044240198,-561.64990941,9.998e-05,2]
[352329362,1739044240207,-500.0,9.998e-05,2]
[352329364,1739044240218,-2322.33,9.998e-05,2]
[352329366,1739044240227,-500.0,9.998e-05,2]
[352329368,1739044240236,-500.0,9.998e-05,2]
[352329370,1739044240245,-500.0,9.998e-05,2]
[352329372,1739044240256,-500.0,9.998e-05,2]
[352329374,1739044240265,-906.62,9.998e-05,2]
[352329376,1739044240274,-319.25230685,9.998e-05,2]
[352329378,1739044240284,-500.0,9.998e-05,2]
[352329380,1739044240293,-500.0,9.998e-05,2]
[352329382,1739044240302,-500.0,9.998e-05,2]
[352329384,1739044240311,-1695.52,9.998e-05,2]
[352329386,1739044240320,-500.0,9.998e-05,2]
[352329388,1739044240329,-844.38,9.998e-05,2]
[352329390,1739044240338,-500.0,9.998e-05,2]
[352329392,1739044240347,-500.0,9.998e-05,2]
[352329394,1739044240356,-500.0,9.998e-05,2]
[352329396,1739044240365,-1042.66,9.998e-05,2]
[352329398,1739044240374,-500.0,9.998e-05,2]
[352329400,1739044240384,-500.0,9.998e-05,2]
[352329402,1739044240393,-500.0,9.998e-05,2]
[352329404,1739044240402,-500.0,9.998e-05,2]
[352329406,1739044240411,-500.0,9.998e-05,2]
[352329408,1739044240420,-500.0,9.998e-05,2]
[352329410,1739044240429,-500.0,9.998e-05,2]
[352329412,1739044240438,-500.0,9.998e-05,2]
[352329414,1739044240447,-500.0,9.998e-05,2]
[352329416,1739044240456,-500.0,9.998e-05,2]
[352329418,1739044240466,-500.0,9.998e-05,2]
[352329420,1739044240475,-316.52887731,9.998e-05,2]
[352329421,1739044240484,-500.0,9.998e-05,2]
[352329423,1739044240493,-500.0,9.998e-05,2]
[352329425,1739044240502,-500.0,9.998e-05,2]
[352329427,1739044240511,-760.67,9.998e-05,2]
[352329429,1739044240521,-620.35519919,9.998e-05,2]
[352329431,1739044240531,-500.0,9.998e-05,2]
[352329433,1739044240540,-500.0,9.998e-05,2]
[352329435,1739044240550,-500.0,9.998e-05,2]
[352329437,1739044240559,-1340.43,9.998e-05,2]
[352329439,1739044240568,-654.47,9.998e-05,2]
[352329441,1739044240577,-500.0,9.998e-05,2]
[352329443,1739044240586,-500.0,9.998e-05,2]
[352329445,1739044240597,-953.62,9.998e-05,2]
[352329447,1739044240607,-500.0,9.998e-05,2]
[352329449,1739044240616,-2313.29,9.998e-05,2]
[352329451,1739044240625,-500.0,9.998e-05,2]
[352329453,1739044240635,-500.0,9.998e-05,2]
[352329455,1739044240643,-500.0,9.998e-05,2]
[352329457,1739044240655,-512.16,9.998e-05,2]
[352329459,1739044240663,-500.0,9.998e-05,2]
[352329461,1739044240674,-500.0,9.998e-05,2]
[352329463,1739044240682,-500.0,9.998e-05,2]
[352329465,1739044240692,-1681.63,9.998e-05,2]
[352329467,1739044240701,-500.0,9.998e-05,2]
[352329469,1739044240710,-500.0,9.998e-05,2]
[352329471,1739044240719,-500.0,9.998e-05,2]
[352329473,1739044240731,-500.0,9.998e-05,2]
[352329475,1739044240740,-500.0,9.998e-05,2]
[352329477,1739044240749,-500.0,9.998e-05,2]
[352329479,1739044240764,-513.53785999,9.998e-05,2]
[352329481,1739044240775,-500.0,9.998e-05,2]
[352329484,1739044240784,-1213.11,9.998e-05,2]
[352329486,1739044240794,-500.0,9.998e-05,2]
[352329487,1739044240802,-500.0,9.998e-05,2]
[352329489,1739044240813,-500.0,9.998e-05,2]
[352329491,1739044240822,-500.0,9.998e-05,2]
[352329493,1739044240830,-1353.88,9.998e-05,2]
[352329495,1739044240839,-500.0,9.998e-05,2]
[352329497,1739044240849,-500.0,9.999e-05,2]
[352329499,1739044240858,-500.0,9.999e-05,2]
[352329501,1739044240867,-500.0,9.999e-05,2]
[352329503,1739044240876,-500.0,9.999e-05,2]
[352329505,1739044240886,-502.77975766,9.999e-05,2]
[352329507,1739044240895,-500.0,9.999e-05,2]
[352329509,1739044240905,-500.0,9.999e-05,2]
[352329511,1739044240914,-366.25164345,9.999e-05,2]
[352329513,1739044240923,-253.12517652,9.999e-05,2]
[352329515,1739044240932,-500.0,9.999e-05,2]
[352329517,1739044240942,-500.0,9.999e-05,2]
[352329519,1739044240951,-500.0,9.999e-05,2]
[352329521,1739044240960,-500.0,9.999e-05,2]
[352329523,1739044240970,-500.0,9.999e-05,2]
[352329525,1739044240979,-500.0,9.999e-05,2]